bitfinex/quotes_SOLUSD_20240729
["timestamp","ask_amount","ask_price","bid_price","bid_amount"]
[1722268004944,6.0792,186.97,186.88,20.0]
[1722268005147,6.0792,186.97,186.92,5.3498]
[1722268005926,6.0792,186.97,186.91,5.3501]
[1722268006251,65.34,186.96,186.91,5.3501]
[1722268006930,65.34,186.96,186.92,5.3497]
[1722268007831,65.34,186.96,186.9,5.3501]
[1722268008959,65.34,186.96,186.91,5.35]
[1722268009926,65.34,186.96,186.9,5.3504]
[1722268010125,65.34,186.96,186.88,5.3509]
[1722268010446,1.33774719,186.95,186.88,5.3509]
[1722268010646,0.34,186.94,186.89,5.3507]
[1722268010849,65.34,186.96,186.89,5.3507]
[1722268011173,66.67780652,186.96,186.87,5.351]
[1722268011345,1.33784344,186.95,186.87,5.3512]
[1722268011538,0.34,186.94,186.86,5.3515]
[1722268011735,1.33796284,186.93,186.82,15.7858]
[1722268011940,1.67806602,186.92,186.85,5.3517]
[1722268012754,6.2313,186.9,186.8,8.04317408]
[1722268012928,1.67828949,186.89,186.82,5.3527]
[1722268013128,66.67828949,186.89,186.78,28.04317408]
[1722268013356,66.67828949,186.89,186.78,20.0]
[1722268013670,66.67828949,186.89,186.81,5.353]
[1722268013956,66.67828949,186.89,186.8,5.3532]
[1722268014527,65.34,186.89,186.77,24.71069468]
[1722268014732,65.34,186.89,186.82,5.3526]
[1722268014968,65.34,186.89,186.81,5.3529]
[1722268015139,66.678323,186.89,186.81,5.3529]
[1722268015555,66.678323,186.89,186.82,5.3527]
[1722268015758,65.34,186.89,186.82,5.3527]
[1722268015941,65.34,186.89,186.81,5.353]
[1722268016142,66.67834504,186.89,186.82,5.3527]
[1722268016348,65.34,186.89,186.81,5.353]
[1722268016546,20.0,186.89,186.82,5.3527]
[1722268017343,20.0,186.89,186.78,8.0445912]
[1722268017344,20.0,186.89,186.81,5.3529]
[1722268017848,45.34,186.88,186.81,5.3529]
[1722268018042,20.0,186.87,186.81,5.3529]
[1722268018246,45.34,186.86,186.81,5.3529]
[1722268018448,45.34,186.86,186.79,8.0445912]
[1722268018649,45.34,186.86,186.78,8.04453903]
[1722268018851,45.34,186.86,186.77,15.5968]
[1722268018852,45.34,186.86,186.79,5.3535]
[1722268019161,45.34,186.86,186.79,5.3533]
[1722268019373,21.33843396,186.85,186.79,5.3533]
[1722268019573,45.34,186.84,186.79,5.3533]
[1722268019863,45.34,186.84,186.78,5.3538]
[1722268020250,45.34,186.84,186.76,8.04453903]
[1722268020656,45.34,186.84,186.81,5.3529]
[1722268020854,20.0,186.85,186.76,8.04453903]
[1722268020855,20.0,186.85,186.78,20.0]
[1722268021061,1.33827212,186.84,186.82,5.3526]
[1722268021248,6.2313,186.9,186.79,27.16]
[1722268021578,6.2313,186.9,186.82,20.0]
[1722268021750,6.2313,186.9,186.89,5.3507]
[1722268021944,1.337959,186.96,186.83,0.80228425]
[1722268021945,7.66188464,186.95,186.9,5.3503]
[1722268022155,7.66188464,186.95,186.89,5.3506]
[1722268022373,7.66188464,186.95,186.85,27.16]
[1722268022587,6.3241,186.95,186.87,5.3511]
[1722268022872,6.3241,186.95,186.85,27.16]
[1722268022873,6.3241,186.95,186.9,5.3501]
[1722268023178,7.66175978,186.95,186.85,27.16]
[1722268023349,7.66175978,186.95,186.87,5.3512]
[1722268023557,7.66175978,186.95,186.82,20.0]
[1722268023558,7.66175978,186.95,186.82,55.20329952]
[1722268023776,7.66175978,186.95,186.82,47.16]
[1722268023975,0.17,186.94,186.85,5.3518]
[1722268024149,1.33797657,186.93,186.85,5.3518]
[1722268024349,0.34,186.92,186.82,47.16]
[1722268024577,0.34,186.92,186.85,5.3516]
[1722268024750,1.67797666,186.92,186.83,5.3522]
[1722268024951,1.67797666,186.92,186.84,5.3521]
[1722268025270,21.67797666,186.92,186.82,5.3527]
[1722268025566,45.0,186.91,186.86,5.3515]
[1722268025755,20.34,186.9,186.85,5.3518]
[1722268025954,20.34,186.9,186.83,20.0]
[1722268026157,20.0,186.9,186.83,20.0]
[1722268026376,20.0,186.94,186.83,25.3522]
[1722268026569,1.33805554,186.93,186.82,27.16]
[1722268026770,21.33803748,186.94,186.86,5.3513]
[1722268026971,26.68724165,186.94,186.83,5.3522]
[1722268027157,26.68724165,186.94,186.84,5.352]
[1722268027359,21.33794165,186.94,186.85,5.3518]
[1722268027575,26.68724165,186.94,186.82,27.16]
[1722268027755,0.34,186.93,186.82,27.16]
[1722268027957,0.34,186.93,186.82,32.5124]
[1722268028158,45.34,186.93,186.82,32.5124]
[1722268028384,21.33807879,186.92,186.82,27.16]
[1722268028686,45.34,186.91,186.83,5.3524]
[1722268028986,20.0,186.9,186.84,5.3521]
[1722268029156,45.34,186.89,186.84,5.3521]
[1722268029356,20.0,186.88,186.84,5.3521]
[1722268029656,20.0,186.88,186.85,5.3517]
[1722268029975,45.34,186.89,186.85,5.3517]
[1722268031294,1.33800811,186.94,186.85,5.3518]
[1722268031487,1.33800811,186.94,186.82,47.16]
[1722268031488,21.33800811,186.94,186.82,47.16]
[1722268031874,26.68740811,186.94,186.84,5.3519]
[1722268032203,6.3241,186.95,186.88,5.3507]
[1722268032878,1.33777148,186.94,186.85,5.3516]
[1722268033085,6.68717148,186.94,186.84,5.3521]
[1722268033609,20.0,186.93,186.84,5.3521]
[1722268033901,50.6901,186.92,186.82,27.16]
[1722268034195,20.0,186.91,186.83,5.3524]
[1722268034391,45.34,186.9,186.81,5.3527]
[1722268034597,21.33825832,186.89,186.82,5.3525]
[1722268034771,45.34,186.88,186.82,5.3525]
[1722268034974,45.34,186.88,186.79,42.1892]
[1722268034975,26.3714,186.87,186.79,42.1892]
[1722268035302,0.34,186.86,186.79,15.0292]
[1722268035688,0.34,186.86,186.79,20.3825]
[1722268035878,1.33840055,186.85,186.79,5.3533]
[1722268036086,0.34,186.84,186.79,5.3533]
[1722268036391,45.34,186.84,186.8,5.3533]
[1722268036985,0.17,186.84,186.77,20.0]
[1722268037182,20.0,186.86,186.81,5.3527]
[1722268037485,20.0,186.86,186.81,5.3529]
[1722268037681,45.34,186.85,186.78,27.16]
[1722268037989,20.0,186.86,186.83,5.3524]
[1722268038370,6.3714,186.87,186.81,47.16]
[1722268038714,21.4668,186.92,186.81,47.16]
[1722268038900,0.34,186.91,186.85,5.3516]
[1722268039407,0.34,186.91,186.84,5.3519]
[1722268039586,0.34,186.91,186.81,27.16]
[1722268039790,0.34,186.91,186.83,5.3524]
[1722268039979,20.34,186.91,186.83,5.3524]
[1722268040174,20.34,186.91,186.81,27.16]
[1722268040175,25.6903,186.91,186.81,27.16]
[1722268040387,20.34,186.91,186.81,27.16]
[1722268040598,45.0,186.9,186.81,27.16]
[1722268040909,20.34,186.89,186.81,27.16]
[1722268041089,45.0,186.88,186.81,32.5128]
[1722268041408,20.34,186.89,186.81,27.16]
[1722268041576,0.34,186.89,186.81,27.16]
[1722268042105,20.0,186.89,186.81,27.16]
[1722268042397,46.33816873,186.88,186.78,27.16]
[1722268042586,20.0,186.87,186.8,5.3532]
[1722268042786,45.0,186.86,186.8,5.3532]
[1722268043389,20.0,186.87,186.78,27.16]
[1722268043581,0.34,186.86,186.81,5.3527]
[1722268043778,0.34,186.86,186.77,8.04435733]
[1722268043998,0.34,186.86,186.76,8.04435733]
[1722268043999,6.2185,186.84,186.76,8.04435733]
[1722268044200,65.34,186.83,186.74,50.38305733]
[1722268044711,1.33861719,186.82,186.75,5.3547]
[1722268044877,0.34,186.81,186.76,5.3543]
[1722268045092,0.34,186.81,186.74,47.6935]
[1722268045391,1.67861768,186.82,186.75,5.3547]
[1722268047511,1.67861768,186.82,186.71,35.2064293]
[1722268047695,1.67861768,186.82,186.74,5.3549]
[1722268047899,5.353,186.81,186.72,5.3554]
[1722268048211,66.67878112,186.8,186.72,5.3554]
[1722268048525,45.34,186.79,186.72,5.3554]
[1722268048692,20.0,186.78,186.71,32.5158]
[1722268048894,45.34,186.77,186.71,32.5158]
[1722268049407,45.34,186.77,186.71,5.3558]
[1722268050002,45.34,186.77,186.71,18.7451]
[1722268050187,45.34,186.77,186.72,5.3555]
[1722268050514,45.34,186.77,186.73,5.3552]
[1722268050811,45.34,186.77,186.72,5.3555]
[1722268051312,20.0,186.78,186.74,13.3873]
[1722268051515,20.0,186.83,186.76,5.3544]
[1722268051715,1.33863423,186.82,186.76,5.3544]
[1722268051890,20.0,186.83,186.77,5.3541]
[1722268052216,6.216,186.89,186.85,5.3516]
[1722268052517,6.216,186.94,186.84,27.16]
[1722268052721,6.216,186.94,186.88,5.3507]
[1722268052885,6.216,186.94,186.87,47.16]
[1722268053089,259.8,187.02,186.87,47.16]
[1722268053090,6.4447,186.99,186.92,5.3497]
[1722268053391,1.33754406,186.98,186.9,5.3504]
[1722268054108,1.33754406,186.98,186.88,5.3507]
[1722268054321,5.3486,186.97,186.86,5.3513]
[1722268054594,1.33778379,186.96,186.86,5.3513]
[1722268054816,1.33778424,186.95,186.85,5.3518]
[1722268055118,6.68595763,186.98,186.88,5.351]
[1722268055491,5.3487,186.96,186.86,5.3515]
[1722268055821,66.33783971,186.95,186.84,27.16]
[1722268055986,20.0,186.95,186.86,5.3513]
[1722268056185,45.0,186.94,186.88,5.3509]
[1722268056400,45.0,186.94,186.84,48.23028529]
[1722268056401,20.0,186.97,186.86,20.0]
[1722268056717,1.33759872,186.96,186.91,5.3501]
[1722268056918,20.0,186.98,186.87,27.16]
[1722268057118,20.0,186.98,186.88,5.3507]
[1722268057119,26.68595868,186.98,186.88,5.3507]
[1722268057420,5.3487,186.96,186.87,5.3511]
[1722268057622,21.33778654,186.95,186.84,27.16]
[1722268057803,65.34,186.94,186.85,5.3517]
[1722268058005,1.3378996,186.93,186.85,5.3517]
[1722268058314,0.34,186.92,186.86,5.3515]
[1722268058610,1.50788565,186.92,186.84,32.5121]
[1722268058828,0.17,186.91,186.84,32.5121]
[1722268059121,0.17,186.91,186.85,5.3518]
[1722268059415,6.1113,186.9,186.83,5.3523]
[1722268059631,6.1113,186.9,186.81,27.16]
[1722268059632,20.34,186.89,186.84,5.3521]
[1722268060301,1.33804106,186.88,186.84,5.3521]
[1722268060620,20.34,186.89,186.84,5.3521]
[1722268060797,21.67804159,186.89,186.84,5.3521]
[1722268061004,21.67804159,186.89,186.81,27.16]
[1722268061194,21.67804159,186.89,186.83,5.3523]
[1722268061511,20.34,186.89,186.83,5.3523]
[1722268062914,20.34,186.89,186.82,5.3527]
[1722268063117,20.34,186.89,186.83,5.3523]
[1722268064012,20.34,186.89,186.84,5.3521]
[1722268064224,20.0,186.89,186.82,20.0]
[1722268064425,20.0,186.89,186.86,5.3515]
[1722268064718,20.0,186.89,186.84,32.5121]
[1722268064894,20.0,186.89,186.81,27.16]
[1722268065624,1.33816583,186.88,186.8,5.3533]
[1722268065799,46.67816583,186.88,186.8,5.3533]
[1722268066123,20.0,186.87,186.8,5.3533]
[1722268066420,46.67825585,186.86,186.79,20.6475]
[1722268066621,1.3383715,186.85,186.75,27.16]
[1722268066930,0.34,186.84,186.75,27.16]
[1722268067133,1.33855248,186.83,186.75,32.5145]
[1722268067428,6.6652,186.82,186.76,5.3543]
[1722268067593,20.0,186.81,186.76,5.3543]
[1722268067795,0.17,186.8,186.76,5.3543]
[1722268068208,0.17,186.8,186.75,5.3547]
[1722268069300,45.17,186.8,186.74,5.3549]
[1722268069508,20.0,186.79,186.74,5.3549]
[1722268070205,20.0,186.79,186.72,47.16]
[1722268070409,20.0,186.79,186.76,5.3542]
[1722268071318,20.0,186.79,186.72,47.16]
[1722268071522,0.17,186.8,186.72,47.16]
[1722268071523,0.17,186.8,186.77,5.3539]
[1722268071930,0.17,186.8,186.76,5.3544]
[1722268072111,0.17,186.8,186.77,5.3541]
[1722268072324,6.3252,186.82,186.8,5.3531]
[1722268072513,21.6742,186.87,186.78,27.16]
[1722268072712,21.6742,186.87,186.81,5.3529]
[1722268073033,21.6742,186.87,186.79,20.0]
[1722268073207,21.6742,186.87,186.82,5.3524]
[1722268073406,21.6742,186.87,186.83,5.3524]
[1722268073928,21.6742,186.87,186.81,5.3527]
[1722268074126,1.33817643,186.86,186.81,5.3527]
[1722268074321,1.33817643,186.86,186.82,5.3526]
[1722268074523,21.33817643,186.86,186.82,5.3526]
[1722268074725,20.0,186.86,186.81,5.3529]
[1722268075611,6.6113,186.87,186.83,5.3523]
[1722268075934,6.4413,186.87,186.83,5.3523]
[1722268076536,6.4413,186.87,186.84,5.3521]
[1722268076736,15.2329,186.91,186.84,5.3521]
[1722268076737,21.835,186.91,186.84,5.3521]
[1722268076907,21.835,186.91,186.83,21.07040659]
[1722268077109,6.6021,186.91,186.84,27.16]
[1722268077326,6.6021,186.91,186.87,5.3511]
[1722268077633,6.6021,186.96,186.91,5.3501]
[1722268077936,6.6021,186.96,186.88,20.0]
[1722268077937,6.6021,186.96,186.89,5.3506]
[1722268078816,7.93966993,186.96,186.87,27.16]
[1722268079015,20.0,186.95,186.89,5.3506]
[1722268079710,20.0,186.95,186.88,5.3509]
[1722268079916,1.33756911,186.94,186.88,5.3509]
[1722268080216,20.0,186.95,186.87,27.16]
[1722268080423,20.0,186.95,186.89,5.3505]
[1722268080626,20.0,186.95,186.85,16.223]
[1722268080918,45.34,186.94,186.86,5.3513]
[1722268081114,20.0,186.93,186.84,32.5118]
[1722268081346,45.34,186.92,186.84,27.16]
[1722268081523,45.34,186.92,186.81,43.6755]
[1722268081710,20.0,186.91,186.81,43.6755]
[1722268082046,45.34,186.9,186.85,5.3518]
[1722268082526,0.34,186.9,186.81,43.6755]
[1722268082725,45.34,186.9,186.81,43.6755]
[1722268083042,20.0,186.89,186.81,43.6755]
[1722268083331,0.17,186.88,186.84,5.352]
[1722268083516,0.17,186.88,186.81,43.6755]
[1722268083929,6.4774,186.87,186.81,5.353]
[1722268084252,6.4774,186.87,186.76,15.7103]
[1722268084253,20.0,186.86,186.76,15.7103]
[1722268084547,20.0,186.86,186.78,5.3538]
[1722268084548,1.67832252,186.85,186.78,5.3538]
[1722268084721,0.34,186.85,186.74,27.16]
[1722268084911,1.33844689,186.84,186.77,5.3539]
[1722268085207,0.34,186.85,186.74,27.16]
[1722268085208,0.34,186.83,186.74,27.16]
[1722268085411,0.34,186.82,186.74,27.16]
[1722268085608,0.34,186.85,186.77,5.3541]
[1722268086134,1.67853027,186.85,186.77,5.3541]
[1722268086324,0.34,186.85,186.77,5.3541]
[1722268087129,0.34,186.85,186.75,5.3544]
[1722268087331,0.34,186.85,186.76,5.3543]
[1722268087512,5.6919,186.85,186.76,5.3543]
[1722268087722,65.0,186.84,186.76,5.3543]
[1722268087945,0.34,186.83,186.76,5.3543]
[1722268088234,0.34,186.83,186.74,47.16]
[1722268088434,0.34,186.83,186.79,5.3535]
[1722268088644,0.34,186.83,186.78,5.3538]
[1722268089030,0.34,186.83,186.74,47.16]
[1722268089246,0.34,186.83,186.78,5.3538]
[1722268089247,0.17,186.83,186.78,5.3538]
[1722268089417,20.0,186.84,186.74,47.16]
[1722268089618,0.34,186.85,186.76,20.0]
[1722268089819,1.67834756,186.85,186.77,27.16]
[1722268090121,0.34,186.85,186.81,5.3529]
[1722268090331,0.34,186.86,186.81,5.3529]
[1722268090531,0.34,186.86,186.78,5.3538]
[1722268090532,0.17,186.84,186.78,5.3538]
[1722268090724,1.33842031,186.85,186.77,27.16]
[1722268090930,0.34,186.84,186.77,32.5141]
[1722268091146,0.34,186.84,186.76,5.3544]
[1722268091318,45.34,186.84,186.76,5.3544]
[1722268091525,45.34,186.84,186.75,5.3544]
[1722268091713,60.5729,186.84,186.75,5.3544]
[1722268092224,60.5729,186.84,186.72,20.0]
[1722268092225,20.0,186.83,186.74,5.3547]
[1722268092436,45.34,186.82,186.75,5.3547]
[1722268092737,6.5165,186.8,186.73,5.3552]
[1722268092938,45.34,186.79,186.73,5.3552]
[1722268093140,45.34,186.79,186.74,5.355]
[1722268093352,45.34,186.79,186.71,28.23100737]
[1722268093353,45.34,186.79,186.75,5.3544]
[1722268094149,6.5165,186.8,186.7,20.0]
[1722268094150,6.5165,186.8,186.74,27.16]
[1722268094319,6.5165,186.8,186.78,5.3536]
[1722268094521,6.5165,186.8,186.77,5.3541]
[1722268095043,20.0,186.81,186.76,20.0]
[1722268095245,6.0267,186.85,186.8,5.3533]
[1722268095543,6.0267,186.85,186.78,20.0]
[1722268096053,6.0267,186.85,186.8,5.3533]
[1722268096545,6.0267,186.85,186.77,27.16]
[1722268096848,20.0,186.84,186.77,27.16]
[1722268097144,20.34,186.84,186.78,5.3537]
[1722268097335,21.67833974,186.84,186.77,32.5141]
[1722268097535,21.67833974,186.84,186.74,27.16]
[1722268097850,45.0,186.83,186.75,5.3547]
[1722268098055,20.34,186.82,186.75,5.3547]
[1722268098254,45.0,186.81,186.75,5.3547]
[1722268098552,0.17,186.8,186.75,5.3547]
[1722268098752,0.17,186.8,186.77,5.3541]
[1722268098933,20.17,186.82,186.77,5.3541]
[1722268099137,20.0,186.82,186.8,5.3532]
[1722268099345,20.0,186.84,186.79,5.3535]
[1722268099549,6.0267,186.85,186.82,5.3526]
[1722268099746,11.1880889,187.08,186.77,27.16]
[1722268099747,6.1995,186.89,186.8,27.16]
[1722268099950,6.1995,186.89,186.83,27.16]
[1722268100247,6.1995,186.89,186.86,5.3515]
[1722268100439,21.4191,186.93,186.87,5.3512]
[1722268100640,21.4191,186.93,186.79,20.0]
[1722268100641,6.1862,186.93,186.9,5.3503]
[1722268100845,6.1862,186.93,186.91,5.3499]
[1722268101046,6.1862,186.98,186.91,5.3499]
[1722268101263,7.52370064,186.98,186.91,5.3499]
[1722268101450,6.1862,186.98,186.91,5.3499]
[1722268101758,6.1862,186.98,186.87,20.0]
[1722268101957,6.1862,186.98,186.9,5.3502]
[1722268102329,7.52369777,186.98,186.88,5.3509]
[1722268102525,5.3484,186.97,186.87,5.3512]
[1722268102826,11.5344,186.98,186.89,5.3507]
[1722268103352,45.34,186.97,186.89,5.3507]
[1722268103849,20.0,186.96,186.88,5.3509]
[1722268104049,0.34,186.95,186.9,5.3504]
[1722268104241,1.3374812,186.95,186.9,5.3504]
[1722268104433,20.0,186.97,186.89,5.3506]
[1722268104633,20.0,186.97,186.87,5.3511]
[1722268104853,25.3487,186.97,186.88,5.3509]
[1722268105050,20.0,186.97,186.88,5.3509]
[1722268105256,25.3486,186.97,186.87,5.3513]
[1722268105550,45.34,186.96,186.87,5.3513]
[1722268105750,20.0,186.95,186.9,5.3501]
[1722268105961,0.17,186.94,186.9,5.3501]
[1722268106356,20.0,186.95,186.91,5.3501]
[1722268106651,20.0,186.95,186.9,5.3504]
[1722268106838,21.33746853,186.97,186.9,5.3504]
[1722268107359,20.0,186.97,186.92,5.3497]
[1722268107657,6.1862,186.98,186.93,5.3493]
[1722268107831,6.1862,186.98,186.94,5.349]
[1722268108038,6.1862,186.98,186.93,5.3495]
[1722268108362,15.2329,187.05,186.88,30.66]
[1722268108363,6.3945,187.02,186.94,20.0]
[1722268108565,6.3945,187.02,186.97,5.3484]
[1722268108868,6.3945,187.02,186.96,20.0]
[1722268109031,3.36321928,187.08,186.96,20.0]
[1722268109032,6.3803,187.08,186.97,1.06949249]
[1722268109356,6.3803,187.08,187.01,5.3472]
[1722268109840,6.3803,187.08,186.98,40.0]
[1722268110047,6.3803,187.08,187.0,20.0]
[1722268110363,6.3803,187.08,187.03,20.0]
[1722268110536,6.1287,187.13,187.07,5.3455]
[1722268110938,6.1287,187.13,187.08,5.3452]
[1722268111145,6.1287,187.13,187.07,5.3455]
[1722268111349,6.1287,187.13,187.06,20.0]
[1722268111557,6.1287,187.13,187.1,5.3446]
[1722268111758,6.1287,187.13,187.09,5.3447]
[1722268112153,6.1287,187.13,187.09,5.3449]
[1722268112341,6.1287,187.13,187.06,20.0]
[1722268112552,6.1287,187.13,187.07,5.3455]
[1722268112737,6.1287,187.13,187.06,20.0]
[1722268112937,6.1287,187.13,187.09,5.3449]
[1722268113275,6.1287,187.13,187.08,5.3452]
[1722268113564,6.1287,187.13,187.07,5.3455]
[1722268113565,3.6287,187.13,187.07,5.3455]
[1722268113858,3.6287,187.13,187.06,5.3458]
[1722268114049,3.6287,187.13,187.02,20.0]
[1722268114050,0.17,187.12,187.08,5.3452]
[1722268114254,0.17,187.12,187.06,20.0]
[1722268114445,1.33611406,187.15,187.07,5.3455]
[1722268114647,1.33629545,187.14,187.07,5.3455]
[1722268114852,1.33629545,187.14,187.08,5.3452]
[1722268115042,1.33627425,187.16,187.08,5.3452]
[1722268115447,1.33627425,187.16,187.04,20.0]
[1722268115763,5.6833,187.15,187.06,5.3458]
[1722268115947,66.33629105,187.14,187.07,5.3455]
[1722268116148,0.17,187.13,187.07,5.3455]
[1722268116348,45.17,187.13,187.06,5.3458]
[1722268116552,20.0,187.12,187.06,5.3458]
[1722268116755,0.17,187.11,187.07,5.3455]
[1722268116944,0.17,187.11,187.03,20.0]
[1722268116945,20.0,187.12,187.08,5.3452]
[1722268117162,20.0,187.12,187.03,20.0]
[1722268117765,20.0,187.12,187.01,20.0]
[1722268118237,20.0,187.12,187.04,5.3464]
[1722268118441,21.33649393,187.12,187.02,5.3468]
[1722268118647,21.33649393,187.12,186.99,20.0]
[1722268118648,21.33649393,187.12,187.03,5.3466]
[1722268118847,21.33649393,187.12,186.99,20.0]
[1722268118848,45.34,187.11,187.02,5.3469]
[1722268119034,45.34,187.11,187.01,5.3472]
[1722268119035,21.33663857,187.1,187.01,5.3472]
[1722268119265,46.67672378,187.09,186.97,20.0]
[1722268119443,20.0,187.08,187.01,5.3473]
[1722268119764,45.17,187.07,187.03,5.3466]
[1722268119934,0.17,187.07,187.03,5.3466]
[1722268120440,20.0,187.08,187.04,20.0]
[1722268120663,20.0,187.12,187.04,20.0]
[1722268120873,45.34,187.11,187.02,20.0]
[1722268121164,0.17,187.11,187.07,5.3453]
[1722268121339,45.17,187.12,187.07,5.3453]
[1722268121867,45.17,187.12,187.0,30.66]
[1722268121868,45.17,187.12,187.03,20.0]
[1722268122069,0.17,187.11,187.03,20.0]
[1722268122375,20.17,187.11,187.06,5.3458]
[1722268122544,0.17,187.1,187.06,5.3458]
[1722268123261,0.17,187.1,187.05,5.3461]
[1722268123462,0.17,187.1,187.03,5.3465]
[1722268123671,0.17,187.1,186.99,20.0]
[1722268123672,46.50652756,187.1,186.99,20.0]
[1722268123970,20.0,187.09,187.06,5.3458]
[1722268124173,0.17,187.1,187.05,5.3461]
[1722268124342,0.17,187.1,187.03,5.3464]
[1722268124542,45.34,187.1,187.05,5.3461]
[1722268124863,20.0,187.09,187.04,5.3461]
[1722268125067,0.17,187.08,186.99,20.0]
[1722268125370,0.17,187.08,187.02,5.347]
[1722268125740,20.17,187.08,187.01,5.3472]
[1722268126552,20.17,187.08,187.02,5.347]
[1722268126759,20.17,187.08,187.01,5.3472]
[1722268126946,1.33668507,187.07,187.0,5.3475]
[1722268127151,1.67685242,187.06,186.98,5.3479]
[1722268127460,20.34,187.06,186.98,5.3479]
[1722268127655,6.4489,187.04,186.95,15.3808]
[1722268127864,65.34,187.03,186.95,15.3808]
[1722268128262,20.17,187.03,187.01,5.3472]
[1722268128446,20.0,187.03,187.01,5.3472]
[1722268128647,20.0,187.03,186.99,5.3476]
[1722268130173,6.4489,187.04,186.99,5.3476]
[1722268131566,6.4489,187.04,186.95,35.3808]
[1722268131567,6.4489,187.04,186.98,5.3481]
[1722268132570,1.50692572,187.03,186.97,5.3483]
[1722268132764,1.50692572,187.03,186.98,5.3479]
[1722268133362,46.50692572,187.03,186.97,5.3482]
[1722268133569,45.17,187.03,186.97,5.3482]
[1722268134073,1.33700518,187.02,186.96,5.3486]
[1722268134371,45.17,187.03,186.95,20.0]
[1722268134565,45.17,187.03,186.98,5.348]
[1722268138978,6.4489,187.04,187.02,5.3467]
[1722268139185,6.4489,187.04,187.01,5.3472]
[1722268139391,6.4489,187.04,186.98,20.0]
[1722268139679,6.4467,187.08,187.03,5.3467]
[1722268139884,6.4467,187.08,187.02,5.3469]
[1722268140052,6.4467,187.08,187.03,5.3466]
[1722268140253,6.4467,187.08,187.03,20.0]
[1722268140453,6.4467,187.08,187.04,5.3462]
[1722268140671,6.4467,187.08,186.99,27.23]
[1722268140977,6.4467,187.08,187.01,5.3472]
[1722268141155,6.4467,187.08,187.0,20.0]
[1722268141557,6.4467,187.08,187.0,5.3473]
[1722268141773,65.34,187.07,186.98,5.348]
[1722268142455,70.6856,187.07,186.98,5.348]
[1722268142665,70.6856,187.07,186.94,20.0]
[1722268142666,65.34,187.07,186.99,5.3477]
[1722268143074,65.34,187.07,186.94,20.0]
[1722268143075,65.34,187.07,186.98,5.3481]
[1722268143469,66.67690659,187.07,186.99,5.3478]
[1722268143691,65.34,187.07,187.0,5.3473]
[1722268143983,65.34,187.07,186.96,20.0]
[1722268143984,65.34,187.07,187.01,5.347]
[1722268144279,65.34,187.07,187.0,5.3475]
[1722268144791,65.34,187.07,186.99,20.0]
[1722268145084,6.4467,187.08,186.99,20.0]
[1722268145085,1.33672374,187.06,187.01,5.347]
[1722268145384,1.33672374,187.06,187.0,5.3475]
[1722268145561,6.4467,187.08,187.0,5.3475]
[1722268145760,6.4467,187.08,186.99,20.0]
[1722268145991,6.4467,187.08,187.03,5.3464]
[1722268146157,6.4467,187.08,187.05,5.3461]